fUST/lending_fUST_20251004
["ID","MTS","AMOUNT","RATE_DAILY","PERIOD"]
[389157170,1759593048229,-500.0,0.00019726,2]
[389157171,1759593048239,-548.38,0.00019726,2]
[389157172,1759593048249,-3208.65,0.00019726,2]
[389157173,1759593048259,-685.52,0.00019726,2]
[389157174,1759593048269,-500.0,0.00019726,2]
[389157175,1759593048278,-1279.41,0.00019726,2]
[389157176,1759593048288,-643.26,0.00019726,2]
[389157177,1759593048297,-500.0,0.00019726,2]
[389157178,1759593048307,-500.0,0.00019726,2]
[389157179,1759593048316,-5094.83,0.00019726,2]
[389157180,1759593048326,-1655.05,0.00019726,2]
[389157181,1759593048336,-1432.98,0.00019726,2]
[389157182,1759593048345,-500.0,0.00019726,2]
[389157183,1759593048360,-967.26,0.00019726,2]
[389157184,1759593048370,-500.0,0.00019726,2]
[389157185,1759593048380,-500.0,0.00019726,2]
[389157186,1759593048391,-500.0,0.00019726,2]
[389157187,1759593048403,-4031.17,0.00019726,2]
[389157188,1759593048413,-4495.31,0.00019726,2]
[389157189,1759593048422,-5060.59,0.00019726,2]
[389157190,1759593048432,-500.0,0.00019726,2]
[389157191,1759593048443,-500.0,0.00019726,2]
[389157192,1759593048454,-4043.69,0.00019726,2]
[389157193,1759593048467,-500.0,0.00019726,2]
[389157194,1759593048477,-500.0,0.00019726,2]
[389157195,1759593048487,-500.0,0.00019726,2]
[389157196,1759593048497,-500.0,0.00019726,2]
[389157197,1759593048508,-1469.96,0.00019726,2]
[389157198,1759593048519,-500.0,0.00019726,2]
[389157199,1759593048528,-632.58,0.00019726,2]
[389157200,1759593048539,-500.0,0.00019726,2]
[389157201,1759593048548,-1264.74,0.00019726,2]
[389157202,1759593048558,-500.0,0.00019726,2]
[389157203,1759593048568,-500.0,0.00019726,2]
[389157204,1759593048578,-834.51,0.00019726,2]
[389157205,1759593048588,-1639.5,0.00019726,2]
[389157206,1759593048598,-509.86,0.00019726,2]
[389157207,1759593048608,-500.0,0.00019726,2]
[389157208,1759593048618,-500.0,0.00019726,2]
[389157209,1759593048628,-573.11,0.00019726,2]
[389157210,1759593048639,-500.0,0.00019726,2]
[389157211,1759593048649,-4288.81,0.00019726,2]
[389157212,1759593048659,-500.0,0.00019726,2]
[389157213,1759593048669,-2260.03,0.00019726,2]
[389157214,1759593048679,-614.86,0.00019726,2]
[389157215,1759593048690,-572.78,0.00019726,2]
[389157216,1759593048701,-982.23,0.00019726,2]
[389157217,1759593048917,-500.0,0.00019726,2]
[389157218,1759593048928,-500.0,0.00019726,2]
[389157219,1759593048938,-861.39,0.00019726,2]
[389157220,1759593048948,-711.3,0.00019726,2]
[389157221,1759593048958,-1169.22,0.00019726,2]
[389157222,1759593048968,-745.87,0.00019726,2]
[389157223,1759593048977,-769.58,0.00019726,2]
[389157224,1759593048987,-500.0,0.00019726,2]
[389157225,1759593048998,-1039.1,0.00019726,2]
[389157226,1759593049008,-586.44,0.00019726,2]
[389157227,1759593049017,-500.0,0.00019726,2]
[389157228,1759593049027,-5376.96,0.00019726,2]
[389157229,1759593049037,-500.0,0.00019726,2]
[389157230,1759593049046,-500.0,0.00019726,2]
[389157231,1759593049056,-2325.11,0.00019726,2]
[389157232,1759593049065,-367.61138401,0.00019726,2]
[389157233,1759593049075,-1184.17,0.00019726,2]
[389157234,1759593049085,-500.0,0.00019726,2]
[389157235,1759593049095,-500.0,0.00019726,2]
[389157236,1759593049104,-2810.27,0.00019726,2]
[389157237,1759593049113,-500.0,0.00019726,2]
[389157238,1759593049123,-500.0,0.00019726,2]
[389157239,1759593049132,-500.0,0.00019726,2]
[389157240,1759593049142,-500.0,0.00019726,2]
[389157241,1759593049151,-570.71,0.00019726,2]
[389157242,1759593049160,-628.79,0.00019726,2]
[389157243,1759593049170,-761.94,0.00019726,2]
[389157244,1759593049179,-764.12,0.00019726,2]
[389157245,1759593049189,-500.0,0.00019726,2]
[389157246,1759593049198,-1631.41,0.00019726,2]
[389157247,1759593049208,-500.0,0.00019726,2]
[389157248,1759593049218,-500.0,0.00019726,2]
[389157249,1759593049227,-1495.3,0.00019726,2]
[389157250,1759593049236,-2092.97,0.00019726,2]
[389157251,1759593049245,-1174.21,0.00019726,2]
[389157252,1759593049255,-500.0,0.00019726,2]
[389157253,1759593049265,-663.28,0.00019726,2]
[389157254,1759593049275,-1969.15,0.00019726,2]
[389157255,1759593049285,-422.99749966,0.00019726,2]
[389157256,1759593049294,-1062.03,0.00019726,2]
[389157257,1759593049304,-680.83,0.00019726,2]
[389157258,1759593049313,-596.45,0.00019726,2]
[389157259,1759593049322,-2706.53,0.00019726,2]
[389157260,1759593049332,-5236.69,0.00019726,2]
[389157261,1759593049341,-500.0,0.00019726,2]
[389157262,1759593049351,-283.22526745,0.00019726,2]
[389157263,1759593049360,-368.50000764,0.00019726,2]
[389157264,1759593049370,-722.39,0.00019726,2]
[389157265,1759593049379,-676.08,0.00019726,2]
[389157266,1759593049389,-500.0,0.00019726,2]
[389157267,1759593049402,-622.6,0.00019726,2]
[389157268,1759593049411,-500.0,0.00019726,2]
[389157269,1759593049420,-770.23,0.00019726,2]
[389157270,1759593049430,-596.04,0.00019726,2]
[389157271,1759593049439,-1625.7,0.00019726,2]
[389157272,1759593049448,-500.0,0.00019726,2]
[389157273,1759593049459,-1512.93,0.00019726,2]
[389157274,1759593049468,-5806.93,0.00019726,2]
[389157275,1759593049478,-667.12,0.00019726,2]
[389157276,1759593049487,-500.0,0.00019726,2]
[389157277,1759593049497,-1495.05,0.00019726,2]
[389157278,1759593049506,-500.0,0.00019726,2]
[389157279,1759593049516,-500.0,0.00019726,2]
[389157280,1759593049525,-500.0,0.00019726,2]
[389157281,1759593049535,-500.0,0.00019726,2]
[389157282,1759593049544,-1031.66,0.00019726,2]
[389157283,1759593049554,-500.0,0.00019726,2]
[389157284,1759593049564,-500.0,0.00019726,2]
[389157285,1759593049573,-1104.08,0.00019726,2]
[389157286,1759593049583,-4277.11,0.00019726,2]
[389157287,1759593049593,-500.0,0.00019726,2]
[389157288,1759593049603,-2219.31,0.00019726,2]
[389157289,1759593049612,-942.05,0.00019726,2]
[389157290,1759593049622,-959.24,0.00019726,2]
[389157291,1759593049632,-500.0,0.00019726,2]
[389157292,1759593049642,-500.0,0.00019726,2]
[389157293,1759593049651,-500.0,0.00019726,2]
[389157294,1759593049661,-645.52,0.00019726,2]
[389157295,1759593049671,-4584.92,0.00019726,2]
[389157296,1759593049680,-500.0,0.00019726,2]
[389157297,1759593049689,-3358.07,0.00019726,2]
[389157298,1759593049699,-500.0,0.00019726,2]
[389157299,1759593049709,-500.0,0.00019726,2]
[389157300,1759593049719,-2066.69,0.00019726,2]
[389157301,1759593049728,-500.0,0.00019726,2]
[389157302,1759593049737,-500.0,0.00019737,2]
[389157303,1759593049747,-500.0,0.00019737,2]
[389157304,1759593049757,-500.0,0.00019737,2]
[389157305,1759593049766,-342.18247551,0.00019737,2]
[389157306,1759593049776,-500.0,0.00019737,2]
[389157307,1759593049785,-500.0,0.00019737,2]
[389157308,1759593049794,-207.69532041,0.00019737,2]
[389157309,1759593049803,-500.0,0.00019737,2]
[389157310,1759593049812,-394.71835207,0.00019737,2]
[389157311,1759593049822,-500.0,0.00019737,2]
[389157312,1759593049832,-500.0,0.00019737,2]
[389157313,1759593049841,-1242.31559385,0.0001974,2]
[389157314,1759593049851,-501.12580455,0.00019809,2]
[389157315,1759593049860,-500.0,0.00019809,2]
[389157316,1759593049869,-500.0,0.00019809,2]
[389157317,1759593049879,-500.0,0.00019809,2]
[389157318,1759593049889,-500.0,0.00019809,2]
[389157319,1759593049898,-500.0,0.00019809,2]
[389157320,1759593049907,-520.28580106,0.00019845,4]
[389157321,1759593049917,-151.0,0.00019852,2]
[389157322,1759593049926,-151.0,0.00019852,2]
[389157323,1759593049936,-151.0,0.00019852,2]
[389157324,1759593049945,-2055.17196635,0.00019852,2]
[389157325,1759593049956,-151.0,0.00019852,2]
[389157326,1759593049966,-500.0,0.00019852,2]
[389157327,1759593049975,-500.0,0.00019852,2]
[389157328,1759593049984,-331.00157929,0.00019852,2]
[389157329,1759593049994,-166.0,0.00019852,2]
[389157330,1759593050004,-1407.79756957,0.00019887,2]
[389157331,1759593050014,-151.0,0.000199,2]
[389157332,1759593050023,-180.0,0.00019987,2]
[389157333,1759593050032,-500.0,0.0002,2]
[389157334,1759593050042,-500.0,0.0002,2]
[389157335,1759593050052,-500.0,0.0002,2]
[389157336,1759593050062,-151.0,0.0002,2]
[389157337,1759593050071,-500.0,0.0002,2]
[389157338,1759593050080,-500.0,0.0002,2]
[389157339,1759593050090,-500.0,0.0002,2]
[389157340,1759593050099,-500.0,0.0002,2]
[389157341,1759593050109,-500.0,0.0002,2]
[389157342,1759593050119,-500.0,0.0002,2]
[389157343,1759593050128,-500.0,0.0002,2]
[389157344,1759593050138,-500.0,0.0002,2]
[389157345,1759593050147,-500.0,0.0002,2]
[389157346,1759593050156,-500.0,0.0002,2]
[389157347,1759593050166,-500.0,0.0002,2]
[389157348,1759593050175,-749.21,0.0002,2]
[389157349,1759593050184,-553.43,0.0002,2]
[389157350,1759593050194,-500.0,0.0002,2]
[389157351,1759593050203,-500.0,0.0002,2]
[389157352,1759593050212,-500.0,0.0002,2]
[389157353,1759593050222,-500.0,0.0002,2]
[389157354,1759593050231,-500.0,0.0002,2]
[389157355,1759593050240,-500.0,0.0002,2]
[389157356,1759593050250,-500.0,0.0002,2]
[389157357,1759593050259,-500.0,0.0002,2]
[389157358,1759593050269,-500.0,0.0002,2]
[389157359,1759593050279,-500.0,0.0002,2]
[389157360,1759593050288,-500.0,0.0002,2]
[389157361,1759593050297,-500.0,0.0002,2]
[389157362,1759593050307,-500.0,0.0002,2]
[389157363,1759593050316,-592.33,0.0002,2]
[389157364,1759593050326,-612.18,0.0002,2]
[389157365,1759593050336,-500.0,0.0002,2]
[389157366,1759593050345,-500.0,0.0002,2]
[389157367,1759593050355,-500.0,0.0002,2]
[389157368,1759593050366,-597.37,0.0002,2]
[389157369,1759593050375,-500.0,0.0002,2]
[389157370,1759593050385,-151.88682327,0.0002,2]
[389157371,1759593050399,-1880.73,0.0002,2]
[389157372,1759593050409,-561.95,0.0002,2]
[389157373,1759593050418,-1220.52,0.0002,2]
[389157374,1759593050427,-500.0,0.0002,2]
[389157375,1759593050439,-500.0,0.0002,2]
[389157376,1759593050448,-946.68,0.0002,2]
[389157377,1759593050458,-500.0,0.0002,2]
[389157378,1759593050468,-500.0,0.0002,2]
[389157379,1759593050478,-883.67,0.0002,2]
[389157380,1759593050488,-500.0,0.0002,2]
[389157381,1759593050497,-500.0,0.0002,2]
[389157382,1759593050507,-500.0,0.0002,2]
[389157383,1759593050520,-500.0,0.0002,2]
[389157384,1759593050531,-500.0,0.0002,2]
[389157385,1759593050544,-695.58,0.0002,2]
[389157386,1759593050567,-500.0,0.0002,2]
[389157387,1759593050591,-500.0,0.0002,2]
[389157388,1759593050613,-500.0,0.0002,2]
[389157389,1759593050638,-500.0,0.0002,2]
[389157390,1759593050663,-500.0,0.0002,2]
[389157391,1759593050687,-500.0,0.0002,2]
[389157392,1759593050711,-811.13,0.0002,2]
[389157393,1759593050736,-1711.96,0.0002,2]
[389157394,1759593050758,-704.65,0.0002,2]
[389157395,1759593050783,-767.26,0.0002,2]
[389157396,1759593050803,-500.0,0.0002,2]
[389157397,1759593050825,-500.0,0.0002,2]
[389157398,1759593050847,-500.0,0.0002,2]
[389157399,1759593050869,-500.0,0.0002,2]
[389157400,1759593050878,-500.0,0.0002,2]
[389157401,1759593050887,-924.94,0.0002,2]
[389157402,1759593050896,-500.0,0.0002,2]
[389157403,1759593050906,-500.0,0.0002,2]
[389157404,1759593050915,-500.0,0.0002,2]
[389157405,1759593050925,-500.0,0.0002,2]
[389157406,1759593050934,-500.0,0.0002,2]
[389157407,1759593050944,-500.0,0.0002,2]
[389157408,1759593050954,-500.0,0.0002,2]
[389157409,1759593050964,-823.2,0.0002,2]
[389157410,1759593050974,-500.0,0.0002,2]
[389157411,1759593050983,-985.96,0.0002,2]
[389157412,1759593050992,-500.0,0.0002,2]
[389157413,1759593051002,-627.27,0.0002,2]
[389157414,1759593051011,-500.0,0.0002,2]
[389157415,1759593051021,-500.0,0.0002,2]
[389157416,1759593051032,-500.0,0.0002,2]
[389157417,1759593051042,-532.82,0.0002,2]
[389157418,1759593051053,-500.0,0.0002,2]
[389157419,1759593051062,-1949.45,0.0002,2]
[389157420,1759593051072,-500.0,0.0002,2]
[389157421,1759593051082,-3303.91,0.0002,2]
[389157422,1759593051091,-500.0,0.0002,2]
[389157423,1759593051100,-500.0,0.0002,2]
[389157424,1759593051110,-566.96,0.0002,2]
[389157425,1759593051119,-500.0,0.0002,2]
[389157426,1759593051129,-500.0,0.0002,2]
[389157427,1759593051138,-500.0,0.0002,2]
[389157428,1759593051148,-1119.98,0.0002,2]
[389157429,1759593051157,-500.0,0.0002,2]
[389157430,1759593051166,-500.0,0.0002,2]
[389157431,1759593051176,-500.0,0.0002,2]
[389157432,1759593051186,-500.0,0.0002,2]
[389157433,1759593051195,-500.0,0.0002,2]
[389157434,1759593051204,-500.0,0.0002,2]
[389157435,1759593051213,-500.0,0.0002,2]
[389157436,1759593051223,-151.0,0.0002,2]
[389157437,1759593051232,-500.0,0.0002,2]
[389157438,1759593051241,-500.0,0.0002,2]
[389157439,1759593051252,-500.0,0.0002,2]
[389157440,1759593051261,-151.0,0.0002,2]
[389157441,1759593051270,-545.28,0.0002,2]
[389157442,1759593051280,-151.0,0.0002,2]
[389157443,1759593051289,-1261.68,0.0002,2]
[389157444,1759593051299,-151.0,0.0002,2]
[389157445,1759593051308,-500.0,0.0002,2]
[389157446,1759593051318,-500.0,0.0002,2]
[389157447,1759593051327,-3676.63,0.0002,2]
[389157448,1759593051337,-637.38,0.0002,2]
[389157449,1759593051347,-568.41,0.0002,2]
[389157450,1759593051356,-500.0,0.0002,2]
[389157451,1759593051365,-500.0,0.0002,2]
[389157452,1759593051376,-151.0,0.0002,2]
[389157453,1759593051386,-151.0,0.0002,2]
[389157454,1759593051399,-500.0,0.0002,2]
[389157455,1759593051452,-151.0,0.0002,2]
[389157456,1759593051462,-500.0,0.0002,2]
[389157457,1759593051471,-500.0,0.0002,2]
[389157458,1759593051480,-637.084551,0.0002,2]
[389157459,1759593051489,-548.38,0.0002,2]
[389157460,1759593051499,-637.084551,0.0002,2]
[389157461,1759593051515,-151.0,0.0002,2]
[389157462,1759593051524,-637.084551,0.0002,2]
[389157463,1759593051534,-637.084551,0.0002,2]
[389157464,1759593051543,-3208.65,0.0002,2]
[389157465,1759593051552,-685.52,0.0002,2]
[389157466,1759593051561,-500.0,0.0002,2]
[389157467,1759593051570,-1279.41,0.0002,2]
[389157468,1759593051578,-643.26,0.0002,2]
[389157469,1759593051587,-151.0,0.0002,2]
[389157470,1759593051597,-500.0,0.0002,2]
[389157471,1759593051606,-500.0,0.0002,2]
[389157472,1759593051615,-151.0,0.0002,2]
[389157473,1759593051624,-5094.83,0.0002,2]
[389157474,1759593051633,-1655.05,0.0002,2]
[389157475,1759593051642,-1432.98,0.0002,2]
[389157476,1759593051652,-500.0,0.0002,2]
[389157477,1759593051661,-967.26,0.0002,2]
[389157478,1759593051670,-500.0,0.0002,2]
[389157479,1759593051679,-500.0,0.0002,2]
[389157480,1759593051688,-500.0,0.0002,2]
[389157481,1759593051698,-4031.17,0.0002,2]
[389157482,1759593051708,-4495.31,0.0002,2]
[389157483,1759593051717,-5060.59,0.0002,2]
[389157484,1759593051725,-500.0,0.0002,2]
[389157485,1759593051735,-500.0,0.0002,2]
[389157486,1759593051744,-4043.69,0.0002,2]
[389157487,1759593051754,-500.0,0.0002,2]
[389157488,1759593051763,-500.0,0.0002,2]
[389157489,1759593051772,-500.0,0.0002,2]
[389157490,1759593051781,-500.0,0.0002,2]
[389157491,1759593051791,-1469.96,0.0002,2]
[389157492,1759593051800,-500.0,0.0002,2]
[389157493,1759593051810,-632.58,0.0002,2]
[389157494,1759593051818,-500.0,0.0002,2]
[389157495,1759593051828,-1264.74,0.0002,2]
[389157496,1759593051837,-500.0,0.0002,2]
[389157497,1759593051846,-500.0,0.0002,2]
[389157498,1759593051855,-834.51,0.0002,2]
[389157499,1759593051864,-1639.5,0.0002,2]
[389157500,1759593051873,-509.86,0.0002,2]
[389157501,1759593051883,-500.0,0.0002,2]
[389157502,1759593051892,-500.0,0.0002,2]
[389157503,1759593051902,-573.11,0.0002,2]
[389157504,1759593051911,-615.58218432,0.0002,2]
[389157505,1759593051921,-4288.81,0.0002,2]
[389157506,1759593051930,-500.0,0.0002,2]
[389157507,1759593051939,-2260.03,0.0002,2]
[389157508,1759593051948,-614.86,0.0002,2]
[389157509,1759593051957,-572.78,0.0002,2]
[389157510,1759593051966,-500.0,0.0002,2]
[389157511,1759593051976,-982.23,0.0002,2]
[389157512,1759593051985,-500.0,0.0002,2]
[389157513,1759593051994,-500.0,0.0002,2]
[389157514,1759593052003,-861.39,0.0002,2]
[389157515,1759593052012,-711.3,0.0002,2]
[389157516,1759593052021,-745.87,0.0002,2]
[389157517,1759593052031,-1169.22,0.0002,2]
[389157518,1759593052040,-769.58,0.0002,2]
[389157519,1759593052049,-500.0,0.0002,2]
[389157520,1759593052058,-1039.1,0.0002,2]
[389157521,1759593052067,-586.44,0.0002,2]
[389157522,1759593052077,-500.0,0.0002,2]
[389157523,1759593052086,-5376.96,0.0002,2]
[389157524,1759593052095,-500.0,0.0002,2]
[389157525,1759593052105,-500.0,0.0002,2]
[389157526,1759593052114,-2325.11,0.0002,2]
[389157527,1759593052123,-1184.17,0.0002,2]
[389157528,1759593052132,-500.0,0.0002,2]
[389157529,1759593052141,-500.0,0.0002,2]
[389157530,1759593052151,-2810.27,0.0002,2]
[389157531,1759593052160,-500.0,0.0002,2]
[389157532,1759593052170,-500.0,0.0002,2]
[389157533,1759593052179,-500.0,0.0002,2]
[389157534,1759593052189,-500.0,0.0002,2]
[389157535,1759593052198,-570.71,0.0002,2]
[389157536,1759593052207,-628.79,0.0002,2]
[389157537,1759593052218,-761.94,0.0002,2]
[389157538,1759593052226,-764.12,0.0002,2]
[389157539,1759593052236,-1631.41,0.0002,2]
[389157540,1759593052245,-322.89293119,0.0002,2]
[389157541,1759593052254,-500.0,0.0002,2]
[389157542,1759593052263,-1495.3,0.0002,2]
[389157543,1759593052272,-2092.97,0.0002,2]
[389157544,1759593052281,-1174.21,0.0002,2]
[389157545,1759593052291,-500.0,0.0002,2]
[389157546,1759593052300,-663.28,0.0002,2]
[389157547,1759593052309,-1969.15,0.0002,2]
[389157548,1759593052318,-1062.03,0.0002,2]
[389157549,1759593052327,-680.83,0.0002,2]
[389157550,1759593052337,-596.45,0.0002,2]
[389157551,1759593052347,-2706.53,0.0002,2]
[389157552,1759593052355,-5236.69,0.0002,2]
[389157553,1759593052364,-500.0,0.0002,2]
[389157554,1759593052374,-1034.699274,0.0002,2]
[389157555,1759593052384,-1034.699274,0.0002,2]
[389157556,1759593052394,-1034.699274,0.0002,2]
[389157557,1759593052407,-722.39,0.0002,2]
[389157558,1759593052417,-197.584055,0.0002,2]
[389157559,1759593052426,-151.0,0.0002,2]
[389157560,1759593052436,-151.0,0.0002,2]
[389157561,1759593052447,-197.584055,0.0002,2]
[389157562,1759593052456,-151.0,0.0002,2]
[389157563,1759593052465,-676.08,0.0002,2]
[389157564,1759593052477,-1034.699274,0.0002,2]
[389157565,1759593052486,-500.0,0.0002,2]
[389157566,1759593052495,-197.584055,0.0002,2]
[389157567,1759593052505,-622.6,0.0002,2]
[389157568,1759593052514,-363.85018703,0.0002,2]
[389157569,1759593052523,-197.584055,0.0002,2]
[389157570,1759593052532,-770.23,0.0002,2]
[389157571,1759593052541,-596.04,0.0002,2]
[389157572,1759593052550,-500.0,0.0002,2]
[389157573,1759593052561,-1625.7,0.0002,2]
[389157574,1759593052571,-1512.93,0.0002,2]
[389157575,1759593052581,-5806.93,0.0002,2]
[389157576,1759593052593,-667.12,0.0002,2]
[389157577,1759593052613,-500.0,0.0002,2]
[389157578,1759593052624,-500.0,0.0002,2]
[389157579,1759593052634,-1495.05,0.0002,2]
[389157580,1759593052644,-500.0,0.0002,2]
[389157581,1759593052653,-500.0,0.0002,2]
[389157582,1759593052663,-500.0,0.0002,2]
[389157583,1759593052672,-1031.66,0.0002,2]
[389157584,1759593052681,-4000.0,0.0002,4]
[389157585,1759593052691,-500.0,0.0002,2]
[389157586,1759593052700,-500.0,0.0002,2]
[389157587,1759593052709,-1215.184263,0.0002,2]
[389157588,1759593052718,-4277.11,0.0002,2]
[389157589,1759593052727,-1104.08,0.0002,2]
[389157590,1759593052736,-151.0,0.0002,2]
[389157591,1759593052745,-1215.184263,0.0002,2]
[389157592,1759593052753,-151.0,0.0002,2]
[389157593,1759593052762,-1215.184263,0.0002,2]
[389157594,1759593052772,-162.804883,0.0002,2]
[389157595,1759593052781,-1215.184263,0.0002,2]
[389157596,1759593052790,-162.804883,0.0002,2]
[389157597,1759593052799,-500.0,0.0002,2]
[389157598,1759593052809,-2219.31,0.0002,2]
[389157599,1759593052818,-942.05,0.0002,2]
[389157600,1759593052827,-959.24,0.0002,2]
[389157601,1759593052836,-500.0,0.0002,2]
[389157602,1759593052845,-500.0,0.0002,2]
[389157603,1759593052854,-500.0,0.0002,2]
[389157604,1759593052864,-151.0,0.0002,2]
[389157605,1759593052873,-151.0,0.0002,2]
[389157606,1759593052882,-645.52,0.0002,2]
[389157607,1759593052891,-162.804883,0.0002,2]
[389157608,1759593052899,-1371.244277,0.0002,2]
[389157609,1759593052909,-151.0,0.0002,2]
[389157610,1759593052917,-4584.92,0.0002,2]
[389157611,1759593052926,-500.0,0.0002,2]
[389157612,1759593052935,-162.804883,0.0002,2]
[389157613,1759593052945,-3358.07,0.0002,2]
[389157614,1759593052954,-1371.244277,0.0002,2]
[389157615,1759593052963,-151.0,0.0002,2]
[389157616,1759593052972,-500.0,0.0002,2]
[389157617,1759593052982,-1371.244277,0.0002,2]
[389157618,1759593052991,-2066.69,0.0002,2]
[389157619,1759593052999,-151.0,0.0002,2]
[389157620,1759593053008,-151.0,0.0002,2]
[389157621,1759593053018,-1371.244277,0.0002,2]
[389157622,1759593053027,-301.534399,0.0002,2]
[389157623,1759593053037,-840.65048975,0.0002002,2]
[389157624,1759593053046,-500.0,0.00020021,2]
[389157625,1759593053056,-381.22099437,0.00020021,2]
[389157626,1759593053065,-1000.0,0.00020021,2]
[389157627,1759593053075,-1000.0,0.00020021,2]
[389157628,1759593053084,-1000.0,0.00020027,2]
[389157629,1759593053094,-500.34755871,0.00020027,2]
[389157630,1759593053103,-420.0,0.00020053,2]
[389157631,1759593053112,-2425.8890279,0.00020121,2]
[389157632,1759593053121,-3841.92290196,0.00020173,2]
[389157633,1759593053130,-1407.79756957,0.00020187,2]
[389157634,1759593053140,-179.126197,0.00020218,2]
[389157635,1759593053151,-1680.0,0.00020252,2]
[389157636,1759593053160,-1600.86822922,0.00020268,2]
[389157637,1759593053170,-1500.0,0.00020268,2]
[389157638,1759593053180,-1500.0,0.00020268,2]
[389157639,1759593053190,-1500.0,0.00020268,2]
[389157640,1759593053199,-220.95396893,0.00020273,2]
[389157641,1759593053209,-500.0,0.00020273,2]
[389157642,1759593053218,-500.0,0.00020273,2]
[389157643,1759593053227,-500.0,0.00020273,2]
[389157644,1759593053237,-500.0,0.00020273,2]
[389157645,1759593053247,-500.0,0.00020273,2]
[389157646,1759593053256,-500.0,0.00020273,2]
[389157647,1759593053265,-500.0,0.00020273,2]
[389157648,1759593053275,-500.0,0.00020273,2]
[389157649,1759593053284,-460.28670969,0.00020273,2]
[389157650,1759593053293,-371.47358423,0.00020273,2]
[389157651,1759593053303,-500.0,0.00020273,2]
[389157652,1759593053311,-500.0,0.00020273,2]
[389157653,1759593053321,-500.0,0.00020273,2]
[389157654,1759593053330,-500.0,0.00020273,2]
[389157655,1759593053339,-500.0,0.00020273,2]
[389157656,1759593053349,-500.0,0.00020273,2]
[389157657,1759593053358,-749.21,0.00020273,2]
[389157658,1759593053367,-553.43,0.00020273,2]
[389157659,1759593053376,-500.0,0.00020273,2]
[389157660,1759593053387,-500.0,0.00020273,2]
[389157661,1759593053400,-500.0,0.00020273,2]
[389157662,1759593053409,-500.0,0.00020273,2]
[389157663,1759593053418,-500.0,0.00020273,2]
[389157664,1759593053429,-500.0,0.00020273,2]
[389157665,1759593053438,-500.0,0.00020273,2]
[389157666,1759593053448,-500.0,0.00020273,2]
[389157667,1759593053458,-500.0,0.00020273,2]
[389157668,1759593053467,-454.9108577,0.00020273,2]
[389157669,1759593053477,-500.0,0.00020273,2]